bitfinex/quotes_BTCUSD_20251029
["timestamp","ask_amount","ask_price","bid_price","bid_amount"]
[1761753916965,2.9908693,111510.0,111500.0,9.8213196]
[1761753916966,2.6508693,111510.0,111500.0,9.8213196]
[1761753917185,2.0,111510.0,111500.0,9.8213196]
[1761753917393,2.6538693,111510.0,111500.0,9.8213196]
[1761753918162,2.6508693,111510.0,111500.0,9.8213196]
[1761753918372,2.6528693,111510.0,111500.0,9.8213196]
[1761753918574,2.6528693,111510.0,111500.0,9.82175335]
[1761753919590,3.0370893,111510.0,111500.0,9.68311434]
[1761753919954,3.0370893,111510.0,111500.0,9.82175335]
[1761753920161,2.9928693,111510.0,111500.0,9.82175335]
[1761753920773,2.9908693,111510.0,111500.0,9.82175335]
[1761753921303,3.0350893,111510.0,111500.0,9.82175335]
[1761753921498,3.0370893,111510.0,111500.0,9.82175335]
[1761753921699,2.9928693,111510.0,111500.0,9.82175335]
[1761753921918,2.52135611,111510.0,111500.0,9.82175335]
[1761753922121,2.9928693,111510.0,111500.0,9.82175335]
[1761753924097,2.18135611,111510.0,111500.0,9.82175335]
[1761753924339,2.6528693,111510.0,111500.0,9.82175335]
[1761753925373,2.18135611,111510.0,111500.0,9.82175335]
[1761753925545,2.6528693,111510.0,111500.0,9.82175335]
[1761753926825,2.6528693,111510.0,111500.0,9.65074434]
[1761753926826,3.0370893,111510.0,111500.0,9.65074434]
[1761753927232,3.06404855,111510.0,111500.0,9.65074434]
[1761753927402,3.06404855,111510.0,111500.0,9.68311434]
[1761753927618,3.0370893,111510.0,111500.0,9.65074434]
[1761753927767,3.0350893,111510.0,111500.0,9.65074434]
[1761753928602,3.0350893,111510.0,111500.0,9.24626495]
[1761753928804,3.0390893,111510.0,111500.0,9.07856997]
[1761753929552,3.0400893,111510.0,111500.0,9.07856997]
[1761753930215,3.0360893,111510.0,111500.0,9.07856997]
[1761753930675,3.0380893,111510.0,111500.0,9.07856997]
[1761753930918,3.0360893,111510.0,111500.0,9.07856997]
[1761753931133,2.6960893,111510.0,111500.0,9.15975997]
[1761753931345,2.7000893,111510.0,111500.0,9.11093997]
[1761753931558,3.0360893,111510.0,111500.0,9.15975997]
[1761753931774,3.0360893,111510.0,111500.0,9.11093997]
[1761753931981,3.0400893,111510.0,111500.0,9.11093997]
[1761753932285,3.0390893,111510.0,111500.0,9.11093997]
[1761753932519,2.56857611,111510.0,111500.0,9.20075898]
[1761753932744,2.56857611,111510.0,111500.0,9.24957898]
[1761753932745,3.0400893,111510.0,111500.0,9.24957898]
[1761753932983,3.0390893,111510.0,111500.0,9.11093997]
[1761753933407,3.0350893,111510.0,111500.0,9.07856997]
[1761753933655,3.0350893,111510.0,111500.0,9.11093997]
[1761753933872,3.0370893,111510.0,111500.0,9.11093997]
[1761753934432,3.0370893,111510.0,111500.0,9.15975997]
[1761753935085,2.9928693,111510.0,111500.0,9.15975997]
[1761753935291,3.0370893,111510.0,111500.0,9.11093997]
[1761753935497,3.0370893,111510.0,111500.0,9.07856997]
[1761753936437,3.0370893,111510.0,111500.0,8.64367173]
[1761753936438,3.63460378,111510.0,111500.0,8.64367173]
[1761753936670,3.16309059,111510.0,111500.0,8.64367173]
[1761753937095,3.16109059,111510.0,111500.0,8.64367173]
[1761753937311,3.16209059,111510.0,111500.0,8.64367173]
[1761753937557,3.16609059,111510.0,111500.0,8.64367173]
[1761753937968,3.63760378,111510.0,111500.0,8.64367173]
[1761753938221,3.16609059,111510.0,111500.0,8.64367173]
[1761753939205,2.6945774,111510.0,111500.0,8.64367173]
[1761753939412,2.6945774,111510.0,111500.0,8.17735131]
[1761753939413,3.42435287,111510.0,111500.0,8.17735131]
[1761753939621,3.45131328,111510.0,111500.0,7.9193697]
[1761753940084,3.45131328,111510.0,111500.0,7.63316559]
[1761753940290,3.45131328,111510.0,111500.0,7.45561656]
[1761753940531,3.415131,111510.0,111500.0,7.18961597]
[1761753940676,3.45131328,111510.0,111500.0,7.09060063]
[1761753940880,3.45131328,111510.0,111500.0,6.87356081]
[1761753941123,3.45131328,111510.0,111500.0,6.67989481]
[1761753941345,3.45131328,111510.0,111500.0,6.592839]
[1761753942178,2.72153781,111510.0,111500.0,6.17343837]
[1761753942308,3.45131328,111510.0,111500.0,5.98148458]
[1761753942725,3.45131328,111510.0,111500.0,5.70490595]
[1761753944747,3.45131328,111510.0,111500.0,5.17429675]
[1761753944943,3.45131328,111510.0,111500.0,4.95985549]
[1761753945433,3.45131328,111510.0,111500.0,4.59356275]
[1761753945638,3.45131328,111510.0,111500.0,4.50577554]
[1761753946687,2.72153781,111510.0,111500.0,4.50577554]
[1761753946888,3.45131328,111510.0,111500.0,4.50577554]
[1761753947513,3.45131328,111510.0,111500.0,4.10138961]
[1761753947743,3.45131328,111510.0,111500.0,3.84775596]
[1761753947949,3.45131328,111510.0,111500.0,3.78249742]
[1761753948155,3.45131328,111510.0,111500.0,3.44726981]
[1761753948362,2.72153781,111510.0,111500.0,3.2826589]
[1761753948567,3.45131328,111510.0,111500.0,3.15679361]
[1761753948768,3.45131328,111510.0,111500.0,2.92602248]
[1761753949028,3.45131328,111510.0,111500.0,2.73563215]
[1761753950439,3.47131326,111510.0,111500.0,1.77148325]
[1761753950650,2.34,111480.0,111470.0,0.05174884]
[1761753950861,2.65390566,111480.0,111470.0,0.05174884]
[1761753951077,3.38368113,111480.0,111470.0,0.05174884]
[1761753951494,3.27614946,111480.0,111470.0,0.08412884]
[1761753951707,2.20637399,111480.0,111470.0,0.18036884]
[1761753951920,2.17988833,111480.0,111470.0,0.18036884]
[1761753952333,2.18388833,111480.0,111470.0,0.27018785]
[1761753952743,2.9136638,111480.0,111470.0,0.27018785]
[1761753952945,2.18488833,111480.0,111470.0,0.27018785]
[1761753953148,2.9146638,111480.0,111470.0,0.27018785]
[1761753953349,2.18488833,111480.0,111470.0,0.27018785]
[1761753953940,2.00448396,111480.0,111470.0,0.27018785]
[1761753954117,2.18388833,111480.0,111470.0,0.27018785]
[1761753954324,2.18388833,111480.0,111470.0,0.27118785]
[1761753954522,2.00048396,111480.0,111470.0,0.27118785]
[1761753954725,2.17988833,111480.0,111470.0,0.27118785]
[1761753955478,2.9096638,111480.0,111470.0,0.27118785]
[1761753955884,2.9116638,111480.0,111470.0,0.18136884]
[1761753956072,2.9116638,111480.0,111470.0,0.13248884]
[1761753956479,2.9116638,111480.0,111470.0,0.27183872]
[1761753956905,2.18188833,111480.0,111470.0,0.27183872]
[1761753957109,2.9116638,111480.0,111470.0,0.13292638]
[1761753957275,2.9116638,111480.0,111470.0,0.08556638]
[1761753957477,3.2496638,111480.0,111470.0,0.08556638]
[1761753957686,3.2496638,111480.0,111470.0,0.05318638]
[1761753957913,3.2516638,111480.0,111470.0,0.05318638]
[1761753958113,3.2496638,111480.0,111470.0,0.08556638]
[1761753958320,3.2496638,111480.0,111470.0,0.05218638]
[1761753958559,3.2496638,111480.0,111470.0,0.08456638]
[1761753958761,3.2496638,111480.0,111470.0,0.13344638]
[1761753959013,3.2496638,111480.0,111470.0,0.08456638]
[1761753959218,3.2516638,111480.0,111470.0,0.08456638]
[1761753959465,3.2496638,111480.0,111470.0,0.08456638]
[1761753960058,2.51988833,111480.0,111470.0,0.08456638]
[1761753960277,3.2496638,111480.0,111470.0,0.08456638]
[1761753960697,3.2496638,111480.0,111470.0,0.05218638]
[1761753960924,2.67942047,111470.0,111460.0,0.005]
[1761753961147,2.92394594,111470.0,111460.0,0.005]
[1761753961621,3.06097827,111470.0,111460.0,1e-08]
[1761753961868,3.2673672,111470.0,111460.0,1e-08]
[1761753962274,2.53759173,111470.0,111460.0,1e-08]
[1761753962455,3.2693672,111470.0,111460.0,1e-08]
[1761753963007,3.27760159,111470.0,111460.0,1e-08]
[1761753963210,3.28794834,111470.0,111460.0,1e-08]
[1761753963411,3.27971395,111470.0,111460.0,1e-08]
[1761753964165,3.2879394,111470.0,111460.0,1e-08]
[1761753964446,2.15787327,111470.0,111460.0,0.08126001]
[1761753964966,2.91119594,111470.0,111460.0,0.17107902]
[1761753965443,2.18142047,111470.0,111460.0,0.18902267]
[1761753965679,2.18142047,111470.0,111460.0,0.17107902]
[1761753965888,2.17942047,111470.0,111460.0,0.17107902]
[1761753966101,2.90919594,111470.0,111460.0,0.17107902]
[1761753966311,0.18142047,111470.0,111460.0,0.17107902]
[1761753966529,0.002,111470.0,111460.0,0.18902267]
[1761753966766,0.002,111470.0,111460.0,0.18923968]
[1761753967196,0.00107815,111480.0,111460.0,0.52923968]
[1761753967460,0.91813029,111500.0,111470.0,0.16897901]
[1761753967461,0.18835482,111500.0,111470.0,0.16897901]
[1761753967716,0.18835482,111500.0,111490.0,0.07962]
[1761753967904,0.18835482,111500.0,111490.0,0.16943901]
[1761753968182,0.18832391,111510.0,111490.0,0.23399783]
[1761753968432,0.18832391,111510.0,111500.0,0.13643901]
[1761753968662,0.18832391,111510.0,111500.0,0.16897901]
[1761753969154,0.91809938,111510.0,111500.0,0.16897901]
[1761753969633,3.01937219,111500.0,111480.0,0.04662]
[1761753969856,2.51938828,111490.0,111480.0,0.18351901]
[1761753970100,3.24916375,111490.0,111480.0,0.18351901]
[1761753970328,2.67940437,111480.0,111470.0,0.04822517]
[1761753970579,2.17940437,111480.0,111470.0,0.09484517]
[1761753970833,2.90917984,111480.0,111470.0,0.12638517]
[1761753971522,2.17940437,111480.0,111470.0,0.12638517]
[1761753971749,2.90917984,111480.0,111470.0,0.21620418]
[1761753971977,2.17940437,111480.0,111470.0,0.21620418]
[1761753972204,0.18240437,111480.0,111470.0,0.21720418]
[1761753972415,0.91217984,111480.0,111470.0,0.21720418]
[1761753972634,0.17940437,111480.0,111470.0,0.21620418]
[1761753972849,0.90917984,111480.0,111470.0,0.21620418]
[1761753973076,0.91217984,111480.0,111470.0,0.21720418]
[1761753973474,0.91217984,111480.0,111470.0,0.21779841]
[1761753974313,0.90917984,111480.0,111470.0,0.21679841]
[1761753974659,0.91017984,111480.0,111470.0,0.22079841]
[1761753975068,0.90917984,111480.0,111470.0,0.21779841]
[1761753975496,0.91117984,111480.0,111470.0,0.22179841]
[1761753975694,0.18140437,111480.0,111470.0,0.22179841]
[1761753975908,0.73177547,111480.0,111470.0,0.22179841]
[1761753976114,0.91117984,111480.0,111470.0,0.22179841]
[1761753977098,0.91117984,111480.0,111470.0,0.19485563]
[1761753977502,0.18140437,111480.0,111470.0,0.19485563]
[1761753977710,0.91117984,111480.0,111470.0,0.19485563]
[1761753977925,2.90917984,111480.0,111470.0,0.14323563]
[1761753978152,2.90917984,111480.0,111470.0,0.19317563]
[1761753978373,0.18140437,111480.0,111470.0,0.19417563]
[1761753978593,0.90917984,111480.0,111470.0,0.19317563]
[1761753979039,0.18140437,111480.0,111470.0,0.19417563]
[1761753979297,0.91117984,111480.0,111470.0,0.19417563]
[1761753979526,0.18140437,111480.0,111470.0,0.19417563]
[1761753979750,0.002,111480.0,111470.0,0.19417563]
[1761753979974,0.00021692,111490.0,111470.0,0.19417563]
[1761753980200,0.17937395,111500.0,111480.0,0.18907944]
[1761753980421,0.18832391,111510.0,111490.0,0.03138]
[1761753980680,0.91809938,111510.0,111500.0,0.12119901]
[1761753980909,0.91809938,111510.0,111500.0,0.13913622]
[1761753981146,0.17935611,111510.0,111500.0,0.18907622]
[1761753982297,0.18135611,111510.0,111500.0,0.19307622]
[1761753982739,0.90913158,111510.0,111500.0,0.17113901]
[1761753983426,0.18135611,111510.0,111500.0,0.17513901]
[1761753983867,0.18135611,111510.0,111500.0,0.19307622]
[1761753984083,0.91113158,111510.0,111500.0,0.17613901]
[1761753984286,0.18135611,111510.0,111500.0,0.17613901]
[1761753984570,0.002,111510.0,111500.0,0.17513901]
[1761753984792,0.002,111510.0,111500.0,0.19307622]
[1761753985005,0.002,111510.0,111500.0,0.17513901]
[1761753985662,0.90911549,111520.0,111500.0,0.17113901]
[1761753985910,0.17935611,111510.0,111500.0,0.08981901]
[1761753986133,0.91113158,111510.0,111500.0,0.09381901]
[1761753986349,0.91113158,111510.0,111500.0,0.17513901]
[1761753986523,0.91156532,111510.0,111500.0,0.17513901]
[1761753987344,0.90656532,111510.0,111500.0,0.17513901]
[1761753987554,0.90656532,111510.0,111500.0,0.12519901]
[1761753987783,3.32546532,111510.0,111500.0,0.004]
[1761753988235,3.3616476,111510.0,111500.0,0.004]
[1761753988904,0.17937219,111500.0,111490.0,0.04835]
[1761753989104,0.90914766,111500.0,111490.0,0.04835]
[1761753989313,0.51938828,111490.0,111480.0,0.00059416]
[1761753989540,1.29579375,111490.0,111480.0,0.00059416]
[1761753989779,3.32823375,111490.0,111480.0,0.00059416]
[1761753990012,3.36903375,111490.0,111480.0,0.00059416]
[1761753990240,3.32823375,111490.0,111480.0,0.00059416]
[1761753990857,3.32923375,111490.0,111480.0,0.00359416]
[1761753991504,3.33023375,111490.0,111480.0,0.00359416]
[1761753992145,3.33023375,111490.0,111480.0,0.00059416]
[1761753992357,0.51940437,111480.0,111470.0,0.02028239]
[1761753992560,1.24917984,111480.0,111470.0,0.02028239]
[1761753992766,1.24917984,111480.0,111470.0,0.05166239]
[1761753992980,1.24917984,111480.0,111470.0,0.10160239]
[1761753993844,1.25117984,111480.0,111470.0,0.10260239]
[1761753994918,0.17939121,111490.0,111470.0,0.1924214]
[1761753995152,2.0,111490.0,111480.0,0.18907944]
[1761753996219,2.002,111490.0,111480.0,0.18907944]
[1761753996443,2.0,111490.0,111480.0,0.18907944]
[1761753996863,2.002,111490.0,111480.0,0.18907944]
[1761753997285,2.002,111490.0,111480.0,0.18912944]
[1761753997506,2.002,111490.0,111480.0,0.19012944]
[1761753999985,2.002,111490.0,111480.0,0.20012943]
[1761754000168,2.002,111490.0,111480.0,0.182189]
[1761754000369,2.002,111490.0,111480.0,0.20012943]
[1761754001203,2.002,111490.0,111480.0,0.182189]
[1761754001976,1.992,111490.0,111480.0,0.182189]
[1761754002183,2.46336655,111490.0,111480.0,0.182189]
[1761754002691,2.46336655,111490.0,111480.0,0.17218901]
[1761754002919,2.64275483,111490.0,111480.0,0.19012944]
[1761754003386,2.17138828,111490.0,111480.0,0.17218901]
[1761754003557,2.64275483,111490.0,111480.0,0.17218901]
[1761754003757,2.45133671,111490.0,111480.0,0.17218901]
[1761754003941,2.65075483,111490.0,111480.0,0.17218901]
[1761754004329,2.65075483,111490.0,111480.0,0.17118901]
[1761754004735,2.65275483,111490.0,111480.0,0.17618901]
[1761754007684,2.99275483,111490.0,111480.0,0.17477901]
[1761754007908,3.56081039,111490.0,111480.0,0.00505]
[1761754008126,3.60350039,111490.0,111480.0,0.00505]
[1761754008548,3.56081039,111490.0,111480.0,0.00505]
[1761754009391,2.99275483,111490.0,111480.0,0.03811]
[1761754009562,2.99275483,111490.0,111480.0,0.03816]
[1761754009770,2.99275483,111490.0,111480.0,0.03716]
[1761754009937,2.99275483,111490.0,111480.0,0.03316]
[1761754010159,2.99075483,111490.0,111480.0,0.03316]
[1761754010372,2.99275483,111490.0,111480.0,0.08669]
[1761754010682,2.99275483,111490.0,111480.0,0.08674]
[1761754011678,2.99962483,111490.0,111480.0,0.03821]
[1761754014382,2.99275483,111490.0,111480.0,0.03821]
[1761754014601,2.99275483,111490.0,111480.0,0.08674]
[1761754015014,3.56115039,111490.0,111480.0,0.00515]
[1761754015168,3.56115039,111490.0,111480.0,0.03821]
[1761754015379,3.47133138,111490.0,111480.0,0.03821]
[1761754015585,3.63967267,111490.0,111480.0,1e-08]
[1761754016168,3.64789555,111490.0,111480.0,1e-08]
[1761754017313,3.66435489,111490.0,111480.0,1e-08]
[1761754017536,3.7541739,111490.0,111480.0,1e-08]
[1761754020990,3.78131547,111490.0,111480.0,1e-08]
[1761754021874,3.77931547,111490.0,111480.0,1e-08]
[1761754022343,3.7870058,111490.0,111480.0,1e-08]
[1761754022566,3.7850058,111490.0,111480.0,1e-08]
[1761754022789,3.7840058,111490.0,111480.0,1e-08]
[1761754023216,3.7850058,111490.0,111480.0,1e-08]
[1761754023875,3.7850058,111490.0,111430.0,0.0004]
[1761754023876,2.58657877,111440.0,111430.0,1e-08]
[1761754024096,3.10882992,111440.0,111430.0,1e-08]
[1761754024309,3.25267121,111440.0,111430.0,1e-08]
[1761754024523,2.78130466,111440.0,111430.0,1e-08]
[1761754024943,2.7895086,111440.0,111430.0,1e-08]
[1761754025152,2.78130466,111440.0,111430.0,1e-08]
[1761754025433,2.79120565,111440.0,111430.0,1e-08]
[1761754025640,2.79320565,111440.0,111430.0,1e-08]
[1761754026083,0.51950098,111420.0,111410.0,4.175e-05]
[1761754026293,2.76228503,111420.0,111410.0,4.175e-05]
[1761754026503,3.73671813,111420.0,111410.0,4.175e-05]
[1761754027346,3.70053585,111420.0,111410.0,4.175e-05]
[1761754027569,3.73671813,111420.0,111410.0,4.175e-05]
[1761754028062,2.55571549,111400.0,111390.0,0.14453339]
[1761754028303,3.6392222,111400.0,111390.0,0.14453339]
[1761754028529,3.6313776,111400.0,111390.0,0.14453339]
[1761754029005,2.21573161,111390.0,111380.0,0.0271833]
[1761754029282,2.21573161,111390.0,111380.0,0.0726133]
[1761754029283,2.30555062,111390.0,111380.0,0.0726133]
[1761754029496,2.68395588,111390.0,111380.0,0.0598333]
[1761754029720,2.74073489,111390.0,111380.0,0.1052633]
[1761754029933,3.41381273,111390.0,111380.0,0.0271833]
[1761754030152,2.42820963,111390.0,111380.0,0.0272333]
[1761754030388,2.89957618,111390.0,111380.0,0.0272333]
[1761754030606,2.80975717,111390.0,111380.0,0.0598833]
[1761754030825,2.80994717,111390.0,111380.0,0.0272333]
[1761754031040,3.32399372,111390.0,111380.0,0.0272333]
[1761754031256,2.33250062,111390.0,111380.0,0.0598833]
[1761754031468,2.33250062,111390.0,111380.0,0.0272333]
[1761754031469,2.33994062,111390.0,111380.0,0.0272333]
[1761754031706,2.8912839,111390.0,111380.0,0.0589433]
[1761754031938,2.8345539,111390.0,111380.0,0.1053733]
[1761754032153,2.24588161,111390.0,111380.0,0.0589433]
[1761754032377,2.65491588,111390.0,111380.0,0.1053733]
[1761754032594,2.65491588,111390.0,111380.0,0.1054233]
[1761754032868,2.18354933,111390.0,111380.0,0.1054233]
[1761754033089,2.18354933,111390.0,111380.0,0.1054733]
[1761754033315,0.18354933,111390.0,111380.0,0.19534231]
[1761754033555,0.65491588,111390.0,111380.0,0.19534231]
[1761754033782,0.004,111390.0,111380.0,0.19534231]
[1761754034009,0.47436655,111390.0,111380.0,0.19534231]
[1761754034250,0.003,111390.0,111380.0,0.19534231]
[1761754034478,0.003,111390.0,111380.0,0.22059971]
[1761754034915,0.47436655,111390.0,111380.0,0.22059971]
[1761754035133,0.18895977,111420.0,111380.0,0.2305997]
[1761754035351,0.18895977,111420.0,111390.0,0.15420394]
[1761754035352,0.17953321,111400.0,111390.0,0.15420394]
[1761754035627,0.47136655,111400.0,111390.0,0.08781901]
[1761754035861,0.17951734,111410.0,111390.0,0.16694901]
[1761754036091,0.17951734,111410.0,111400.0,0.07814]
[1761754036309,0.17951734,111410.0,111400.0,0.16795901]
[1761754036521,0.18895977,111420.0,111400.0,0.18949691]
[1761754036789,0.18895977,111420.0,111410.0,0.16795901]
[1761754037041,0.17998473,111420.0,111410.0,0.18591071]
[1761754037263,0.4718503,111420.0,111410.0,0.18591071]
[1761754037485,0.00048375,111420.0,111410.0,0.18591071]
[1761754037707,0.4718503,111420.0,111410.0,0.20765557]
[1761754037922,0.00048375,111420.0,111410.0,0.18970387]
[1761754038194,0.4718503,111420.0,111410.0,0.18970387]
[1761754038623,0.00048375,111420.0,111410.0,0.36922096]
[1761754038847,0.00048375,111420.0,111410.0,0.37922095]
[1761754039072,0.00048375,111420.0,111410.0,0.75540323]
[1761754039296,0.00048375,111420.0,111410.0,0.76545322]
[1761754039534,0.00248375,111420.0,111410.0,2.76745322]
[1761754039747,0.00248375,111420.0,111410.0,3.23886977]
[1761754039960,0.00248375,111420.0,111410.0,2.76750322]
[1761754040172,0.00248375,111420.0,111410.0,2.80227322]
[1761754040385,0.00048375,111420.0,111410.0,2.80027322]
[1761754040621,0.00048375,111420.0,111410.0,3.27163977]
[1761754040872,0.00048375,111420.0,111410.0,3.28163976]
[1761754041545,0.00048375,111420.0,111410.0,3.26163978]
[1761754041756,0.00048375,111420.0,111410.0,3.37614976]
[1761754041985,0.00048375,111420.0,111410.0,3.28163976]
[1761754042433,0.001,111420.0,111410.0,3.28563976]
[1761754042652,0.00059448,111440.0,111430.0,0.58566712]
[1761754042882,0.00059448,111440.0,111430.0,1.28980717]
[1761754043098,0.00059448,111440.0,111430.0,2.86487062]
[1761754043327,0.00059448,111440.0,111430.0,3.33623717]
[1761754044193,0.00059448,111440.0,111430.0,3.33723717]
[1761754044411,1e-08,111440.0,111430.0,3.80860372]
[1761754044859,1e-08,111440.0,111430.0,3.87627456]
[1761754045294,1e-08,111440.0,111430.0,2.89886146]
[1761754045511,1e-08,111440.0,111430.0,2.83119062]
[1761754045754,1e-08,111440.0,111430.0,0.45500834]
[1761754045975,1e-08,111440.0,111430.0,0.96109489]
[1761754046193,1e-08,111440.0,111430.0,2.96009489]
[1761754046405,1e-08,111440.0,111430.0,3.30309489]
[1761754046638,0.00300001,111440.0,111430.0,3.34727717]
[1761754046857,2.47136655,111500.0,111480.0,0.00999999]
[1761754047082,0.47136655,111490.0,111480.0,0.15116093]
[1761754047508,0.47136655,111490.0,111480.0,0.18287093]
[1761754047723,0.47136655,111490.0,111480.0,0.31911994]
[1761754047934,0.17937273,111500.0,111480.0,0.3012286]
[1761754048143,0.17937273,111500.0,111490.0,0.21537901]
[1761754048390,0.65073928,111500.0,111490.0,0.21537901]
[1761754048597,0.65273928,111500.0,111490.0,0.21537901]
[1761754049028,0.002,111500.0,111490.0,0.25156129]
[1761754049233,0.002,111500.0,111490.0,0.26156128]
[1761754049892,2.0,111520.0,111500.0,0.00999999]
[1761754050103,0.65070657,111520.0,111510.0,0.08981901]
[1761754050316,0.65070657,111520.0,111510.0,0.16795901]
[1761754050519,0.17934002,111520.0,111510.0,0.16795901]
[1761754050728,0.65070657,111520.0,111510.0,0.16795901]
[1761754050999,0.47136655,111520.0,111510.0,0.19187052]
[1761754051210,0.65270657,111520.0,111510.0,0.19287052]
[1761754051421,0.47136655,111520.0,111510.0,0.19287052]
[1761754051860,0.002,111520.0,111510.0,0.20392052]
[1761754052074,0.47336655,111520.0,111510.0,0.20392052]
[1761754052333,0.65270657,111520.0,111510.0,0.20392052]
[1761754052545,0.002,111520.0,111510.0,0.25010279]
[1761754052758,0.47336655,111520.0,111510.0,0.20392052]
[1761754052969,0.002,111520.0,111510.0,0.20392052]
[1761754053190,0.47336655,111520.0,111510.0,0.20392052]
[1761754053398,0.002,111520.0,111510.0,0.20392052]
[1761754053623,0.47336655,111520.0,111510.0,0.20392052]
[1761754054072,0.002,111520.0,111510.0,0.23507052]
[1761754054727,0.00373519,111520.0,111510.0,0.23507052]
[1761754054948,0.65444176,111520.0,111510.0,0.23507052]
[1761754055426,0.65444176,111520.0,111510.0,0.21115901]
[1761754055860,0.18307521,111520.0,111510.0,0.21115901]
[1761754056315,0.65444176,111520.0,111510.0,0.21115901]
[1761754057197,0.47510174,111520.0,111510.0,0.21115901]
[1761754057615,0.00373519,111520.0,111510.0,0.21115901]
[1761754057827,0.00373519,111520.0,111510.0,0.24039052]
[1761754058048,0.47510174,111520.0,111510.0,0.24039052]
[1761754058694,0.00373519,111520.0,111510.0,0.24039052]
[1761754059196,0.00373519,111520.0,111510.0,0.41974663]
[1761754059433,0.00373519,111520.0,111510.0,0.45592891]
[1761754059649,0.00373519,111520.0,111510.0,0.4659289]
[1761754059889,0.00373519,111520.0,111510.0,0.81592889]
[1761754061036,0.00373519,111520.0,111510.0,0.81492889]
[1761754061261,0.00173519,111520.0,111510.0,0.80592889]
[1761754061493,0.00273519,111520.0,111510.0,0.81792889]
[1761754061962,0.00273519,111520.0,111510.0,0.81792889]
[1761754065230,0.00273519,111520.0,111510.0,1.54670663]
[1761754065842,0.00273519,111520.0,111510.0,0.81792889]
[1761754066457,0.00273519,111520.0,111510.0,0.85256889]
[1761754066884,0.00273519,111520.0,111510.0,2.89322564]
[1761754067098,0.00273519,111520.0,111510.0,3.62200338]
[1761754067303,0.00273519,111520.0,111510.0,3.63400337]
[1761754067664,0.00273519,111520.0,111510.0,3.61366629]
[1761754067885,0.00173519,111520.0,111510.0,3.57934662]
[1761754068297,0.00173519,111520.0,111510.0,2.85356888]
[1761754068490,0.00173519,111520.0,111510.0,2.80892889]
[1761754068894,0.00173519,111520.0,111510.0,2.84356889]
[1761754069299,0.00173519,111520.0,111510.0,2.85356888]
[1761754069498,0.00173519,111520.0,111510.0,2.84356889]
[1761754069796,0.00173519,111520.0,111510.0,3.58239662]
[1761754070194,0.00173519,111520.0,111510.0,2.85361888]
[1761754070415,0.00173519,111520.0,111510.0,3.58239662]
[1761754070815,0.00173519,111520.0,111510.0,2.81897888]
[1761754071043,0.00173519,111520.0,111510.0,0.2534405]
[1761754071264,0.00173519,111520.0,111510.0,0.20420901]
[1761754071265,0.73051293,111520.0,111510.0,0.20420901]
[1761754071712,0.18107521,111520.0,111510.0,0.20420901]
[1761754071926,0.73051293,111520.0,111510.0,0.19920901]
[1761754072132,0.00173519,111520.0,111510.0,0.19920901]
[1761754072344,0.01073519,111520.0,111510.0,0.19920901]
[1761754072551,0.91705152,111540.0,111520.0,0.03215]
[1761754072753,0.72877774,111550.0,111530.0,0.50912901]
[1761754072957,0.90807027,111550.0,111540.0,0.03215]
[1761754073161,0.18848627,111560.0,111540.0,0.17125901]
[1761754073362,0.18848627,111560.0,111550.0,0.16912901]
[1761754073577,0.72897774,111560.0,111550.0,0.23634818]
[1761754073797,0.00068434,111560.0,111550.0,0.21841901]
[1761754074716,0.72946208,111560.0,111550.0,0.21841901]
[1761754075011,0.00068434,111560.0,111550.0,0.21846901]
[1761754075149,0.00068434,111560.0,111550.0,0.26383088]
[1761754075372,0.00068434,111560.0,111550.0,0.26483088]
[1761754075570,0.9087378,111560.0,111550.0,0.21951901]
[1761754076076,0.00068434,111560.0,111550.0,0.21951901]
[1761754076534,0.72946208,111560.0,111550.0,0.21951901]
[1761754076751,3.2506878,111560.0,111550.0,0.0001]
[1761754076967,3.39629069,111560.0,111550.0,0.0001]
[1761754077184,3.34872069,111560.0,111550.0,0.0001]
[1761754077405,3.34872069,111560.0,111550.0,0.03225]
[1761754077629,3.34872069,111560.0,111550.0,0.0001]
[1761754078062,3.39629421,111560.0,111550.0,0.0001]
[1761754078825,3.2589052,111560.0,111550.0,0.0001]
[1761754079664,3.3064752,111560.0,111550.0,0.0001]
[1761754080435,3.43247649,111560.0,111550.0,0.0001]
[1761754080857,3.3064752,111560.0,111550.0,0.0001]
[1761754081088,2.53012746,111560.0,111550.0,0.0001]
[1761754081317,3.25696172,111560.0,111550.0,0.07941]
[1761754081787,3.25696172,111560.0,111550.0,0.1287]
[1761754082201,3.2487378,111560.0,111550.0,0.1287]
[1761754082418,0.72946208,111560.0,111550.0,0.23138901]
[1761754082634,0.17996006,111560.0,111550.0,0.23138901]
[1761754082845,0.00068434,111560.0,111550.0,0.23138901]
[1761754083313,0.17996006,111560.0,111550.0,0.23138901]
[1761754083521,0.00068434,111560.0,111550.0,0.23138901]
[1761754084150,0.90960478,111560.0,111550.0,0.21951901]
[1761754084411,2.91155478,111560.0,111550.0,0.09091901]
[1761754084643,3.25978515,111560.0,111550.0,0.0011]
[1761754085084,3.26078515,111560.0,111550.0,0.0011]
[1761754085302,3.34960416,111560.0,111550.0,0.0011]
[1761754085743,3.26078515,111560.0,111550.0,0.0001]
[1761754086168,3.25783515,111560.0,111550.0,0.03225]
[1761754086392,3.30835515,111560.0,111550.0,0.0001]
[1761754086625,3.39817416,111560.0,111550.0,0.0001]
[1761754086829,3.52417545,111560.0,111550.0,0.0001]
[1761754087313,3.52417545,111560.0,111550.0,1e-08]
[1761754087978,3.52317545,111560.0,111550.0,1e-08]
[1761754088425,3.52417545,111560.0,111550.0,1e-08]
[1761754088647,3.52317545,111560.0,111550.0,1e-08]
[1761754089068,3.52517545,111560.0,111550.0,1e-08]
[1761754089274,3.52417545,111560.0,111550.0,1e-08]
[1761754090002,3.52517545,111560.0,111550.0,1e-08]
[1761754090159,3.43535644,111560.0,111550.0,1e-08]
[1761754090372,3.43435644,111560.0,111550.0,1e-08]
[1761754090590,2.92078515,111560.0,111550.0,1e-08]
[1761754090786,2.92178515,111560.0,111550.0,1e-08]
[1761754090994,2.91883515,111560.0,111550.0,0.08165001]
[1761754091402,0.92383515,111560.0,111550.0,0.12773001]
[1761754091796,0.19005741,111560.0,111550.0,0.24825119]
[1761754092052,0.01078169,111560.0,111550.0,0.23032202]
[1761754092310,0.18082704,111560.0,111550.0,0.23032202]
[1761754092610,0.00255132,111560.0,111550.0,0.23032202]
[1761754092878,0.18182704,111560.0,111550.0,0.23332202]
[1761754093166,0.91784683,111560.0,111550.0,0.17146902]
[1761754093527,2.92154683,111560.0,111550.0,0.00100001]
[1761754093760,2.92154683,111560.0,111550.0,1e-08]
[1761754093988,2.91784683,111560.0,111550.0,0.03242001]
[1761754094213,2.91784683,111560.0,111550.0,0.07978001]
[1761754094430,2.90960478,111560.0,111550.0,0.08478001]
[1761754094706,0.18082704,111560.0,111550.0,0.18244602]
[1761754094873,0.90960478,111560.0,111550.0,0.16959902]
[1761754095071,0.90960478,111560.0,111550.0,0.17159902]
[1761754095279,0.90960478,111560.0,111550.0,0.16959902]